bitfinex/quotes_SOLUSD_20220104
["timestamp","ask_amount","ask_price","bid_price","bid_amount"]
[1641315627006,31.07730178,171.53,171.5,7.26]
[1641315627207,31.07730178,171.53,171.51,6.06439992]
[1641315627608,31.07730178,171.53,171.51,6.32439992]
[1641315631608,1.45059851,171.55,171.51,6.32439992]
[1641315631809,1.45059851,171.55,171.51,11.32039992]
[1641315632210,1.45059851,171.56,171.51,19.70039992]
[1641315632812,31.4314906,171.56,171.51,19.70039992]
[1641315633809,29.98089209,171.56,171.51,19.70039992]
[1641315635814,29.98089209,171.56,171.51,19.44039992]
[1641315637012,31.4314906,171.56,171.51,19.44039992]
[1641315637215,31.4314906,171.56,171.51,14.44439992]
[1641315637914,1.45059851,171.56,171.51,14.44439992]
[1641315638413,1.45059851,171.56,171.51,14.70439992]
[1641315639213,1.45059851,171.57,171.51,14.70439992]
[1641315641014,1.3283,171.59,171.51,14.70439992]
[1641315641015,1.45059851,171.56,171.51,14.70439992]
[1641315642418,1.45059851,171.55,171.51,14.70439992]
[1641315643019,1.45059851,171.55,171.51,14.44439992]
[1641315643621,1.45059851,171.55,171.51,6.06439992]
[1641315643820,1.45059851,171.54,171.51,6.06439992]
[1641315645623,1.45059851,171.55,171.51,6.06439992]
[1641315646927,1.95059851,171.55,171.51,6.06439992]
[1641315647526,1.95059851,171.55,171.51,6.32439992]
[1641315649225,1.45059851,171.54,171.51,6.32439992]
[1641315649625,1.45059851,171.54,171.51,0.26]
[1641315649825,1.45059851,171.54,171.5,7.26]
[1641315652027,25.22901473,171.53,171.5,7.26]
[1641315653226,26.67961324,171.53,171.5,7.26]
[1641315653527,25.22901473,171.53,171.5,7.26]
[1641315654453,25.72901473,171.53,171.5,7.26]
[1641315655458,27.17961324,171.53,171.5,7.26]
[1641315660061,1.45059851,171.52,171.5,7.26]
[1641315660365,1.45059851,171.52,171.51,5.7630315]
[1641315661465,1.45059851,171.52,171.51,6.0230315]
[1641315661863,25.72901473,171.53,171.51,6.0230315]
[1641315662464,25.72901473,171.53,171.51,12.08743142]
[1641315663065,25.22901473,171.53,171.51,12.08743142]
[1641315665966,25.22901473,171.53,171.51,6.0230315]
[1641315666366,0.02,171.55,171.51,8.28247604]
[1641315666566,0.02,171.55,171.51,6.0230315]
[1641315668269,29.31338073,171.56,171.51,6.0230315]
[1641315668869,1.45059851,171.55,171.51,6.0230315]
[1641315670270,1.45059851,171.55,171.51,5.7630315]
[1641315670770,29.31338073,171.56,171.51,5.7630315]
[1641315670771,1.45059851,171.54,171.51,5.7630315]
[1641315671573,1.45059851,171.55,171.52,6.06439992]
[1641315671974,1.45059851,171.55,171.53,5.7630315]
[1641315672377,1.45059851,171.55,171.53,6.0230315]
[1641315680915,29.31338073,171.56,171.53,6.0230315]
[1641315682716,29.31338073,171.56,171.53,5.7630315]
[1641315683116,31.26397924,171.56,171.51,5.7630315]
[1641315684019,31.26397924,171.56,171.51,6.0230315]
[1641315684217,30.76397924,171.56,171.51,6.0230315]
[1641315686523,29.31338073,171.56,171.51,6.0230315]
[1641315688922,30.76397924,171.56,171.51,6.0230315]
[1641315691627,29.31338073,171.56,171.51,6.0230315]
[1641315692225,1.45059851,171.54,171.51,6.0230315]
[1641315692828,1.45059851,171.55,171.51,6.0230315]
[1641315693426,1.45059851,171.54,171.51,6.0230315]
[1641315700935,1.45059851,171.55,171.51,6.0230315]
[1641315702039,1.45059851,171.55,171.51,13.0840315]
[1641315702936,30.78397924,171.56,171.51,13.0840315]
[1641315703338,30.78397924,171.56,171.51,15.7413968]
[1641315704238,30.76397924,171.56,171.51,15.7413968]
[1641315706441,30.76397924,171.56,171.51,8.6803968]
[1641315706642,29.31338073,171.56,171.51,8.6803968]
[1641315708145,30.76397924,171.56,171.51,8.6803968]
[1641315708744,29.31338073,171.56,171.51,8.6803968]
[1641315708943,29.31338073,171.56,171.51,6.0230315]
[1641315709646,30.76397924,171.56,171.51,6.0230315]
[1641315710044,30.76397924,171.56,171.51,5.7630315]
[1641315710245,29.31338073,171.56,171.51,5.7630315]
[1641315711049,30.76397924,171.56,171.51,5.7630315]
[1641315711551,1.45059851,171.55,171.51,5.7630315]
[1641315712356,30.76397924,171.56,171.51,5.7630315]
[1641315712857,30.76397924,171.56,171.51,6.0230315]
[1641315716076,1.44850786,171.55,171.51,4.7230315]
[1641315716275,6.14950786,171.55,171.43,8.38]
[1641315716477,6.90950786,171.55,171.42,25.2964]
[1641315716679,11.37367917,171.54,171.42,1.285]
[1641315716877,1.45059851,171.52,171.41,2.42159084]
[1641315717178,1.71059851,171.52,171.41,2.42159084]
[1641315717383,3.65910637,171.52,171.42,1.3205]
[1641315717578,3.65910637,171.52,171.41,2.42159084]
[1641315717978,1.45059851,171.49,171.38,9.6836]
[1641315718179,30.67530213,171.48,171.38,9.6836]
[1641315718382,24.7191,171.47,171.38,9.6836]
[1641315719079,24.7191,171.47,171.38,12.23839948]
[1641315720379,25.2191,171.47,171.38,12.23839948]
[1641315720980,25.2191,171.47,171.38,12.49839948]
[1641315721181,25.2191,171.47,171.38,9.9436]
[1641315721385,25.2191,171.47,171.37,1.3586]
[1641315721582,32.7771,171.47,171.34,9.6555]
[1641315721781,77.4674,171.46,171.34,34.2477]
[1641315721983,77.7274,171.46,171.34,34.2477]
[1641315722184,79.67799851,171.46,171.35,2.8321263]
[1641315722387,24.6006,171.45,171.35,2.8321263]
[1641315722789,25.1006,171.45,171.35,3.0921263]
[1641315722986,24.6006,171.45,171.35,3.0921263]
[1641315724189,23.2545,171.45,171.35,3.0921263]
[1641315726590,77.4674,171.46,171.35,3.0921263]
[1641315727594,78.91799851,171.46,171.35,3.0921263]
[1641315727795,78.91799851,171.46,171.36,1.2979]
[1641315728594,23.3384,171.45,171.36,1.2979]
[1641315728798,24.78899851,171.45,171.36,1.2979]
[1641315729501,24.78899851,171.45,171.36,1.5579]
[1641315729703,1.45059851,171.45,171.36,9.9379]
[1641315730104,32.12590064,171.48,171.37,1.44850786]
[1641315730305,32.12590064,171.48,171.38,8.38]
[1641315730606,32.12590064,171.48,171.38,8.64]
[1641315731203,32.12590064,171.48,171.38,8.38]
[1641315731404,23.2246,171.47,171.37,1.3097]
[1641315731606,24.4582,171.47,171.37,1.3097]
[1641315731803,1.45059851,171.45,171.37,1.3097]
[1641315732835,25.45859851,171.46,171.37,1.3097]
[1641315733025,25.45859851,171.46,171.37,1.5697]
[1641315734225,25.45859851,171.46,171.37,1.3097]
[1641315735027,1.45059851,171.45,171.37,1.3097]
[1641315736128,1.45059851,171.45,171.37,1.5697]
[1641315739233,25.45859851,171.46,171.37,1.5697]
[1641315742137,1.45059851,171.45,171.37,1.5697]
[1641315742742,25.45859851,171.46,171.37,1.5697]
[1641315743140,1.45059851,171.46,171.37,1.5697]
[1641315743540,1.45059851,171.45,171.37,1.5697]
[1641315744347,1.45059851,171.46,171.37,1.5697]
[1641315744541,1.45059851,171.46,171.38,8.38]
[1641315744941,74.0398,171.47,171.38,8.64]
[1641315745742,75.49039851,171.47,171.38,8.64]
[1641315746544,74.0398,171.47,171.38,8.64]
[1641315753452,74.0398,171.47,171.39,1.348]
[1641315753950,74.0398,171.47,171.39,1.608]
[1641315754752,97.2428,171.47,171.39,1.608]
[1641315755753,98.5632,171.47,171.39,1.348]
[1641315756352,100.01379851,171.47,171.39,1.348]
[1641315757352,1.45059851,171.46,171.39,1.348]
[1641315757756,1.45059851,171.46,171.39,1.608]
[1641315758357,100.01379851,171.47,171.39,1.608]
[1641315764090,1.45059851,171.47,171.39,9.988]
[1641315764289,480.26501873,171.51,171.47,45.35200791]
[1641315764490,480.26501873,171.51,171.49,2.34899082]
[1641315764691,480.26501873,171.51,171.5,6.06439992]
[1641315764891,480.26501873,171.51,171.49,10.98899082]
[1641315765099,28.85595963,171.5,171.49,10.98899082]
[1641315765491,28.85595963,171.5,171.49,8.64]
[1641315767197,28.85595963,171.5,171.49,0.26]
[1641315767592,28.85595963,171.5,171.47,45.61200791]
[1641315767894,28.85595963,171.5,171.48,3.03219995]
[1641315768092,28.85595963,171.5,171.48,3.29219995]
[1641315768594,28.85595963,171.5,171.49,3.03219997]
[1641315768992,28.85595963,171.5,171.49,3.29219997]
[1641315774206,1.2397,171.55,171.49,3.29219997]
[1641315774403,1.44850786,171.57,171.49,3.29219997]
[1641315774603,2.20850786,171.57,171.49,3.29219997]
[1641315775006,3.45740786,171.57,171.49,3.29219997]
[1641315775204,26.28981621,171.56,171.49,3.29219997]
[1641315780339,26.78981621,171.56,171.49,3.29219997]
[1641315780739,26.28981621,171.56,171.49,3.29219997]
[1641315781145,26.78981621,171.56,171.49,3.29219997]
[1641315782141,26.28981621,171.56,171.49,3.29219997]
[1641315783842,26.28981621,171.56,171.49,4.61589997]
[1641315785646,26.28981621,171.56,171.49,3.03219997]
[1641315785842,34.00981621,171.56,171.47,45.35200791]
[1641315786043,24.139,171.55,171.47,45.35200791]
[1641315786542,1.44850786,171.54,171.47,45.35200791]
[1641315786744,24.899,171.55,171.47,45.35200791]
[1641315786942,0.26,171.54,171.47,45.35200791]
[1641315787143,24.899,171.55,171.47,45.35200791]
[1641315787348,26.2288,171.55,171.47,45.61200791]
[1641315787543,26.2288,171.55,171.47,45.35200791]
[1641315788545,25.9688,171.55,171.47,45.35200791]
[1641315788747,25.9688,171.55,171.47,45.61200791]
[1641315789544,25.9688,171.55,171.47,48.62260399]
[1641315792252,25.4688,171.55,171.47,48.62260399]
[1641315795355,25.9688,171.55,171.47,48.62260399]
[1641315795556,25.4688,171.55,171.47,48.62260399]
[1641315796363,25.4688,171.55,171.47,45.61200791]
[1641315796759,25.9688,171.55,171.47,45.61200791]
[1641315798562,25.4688,171.55,171.47,45.61200791]
[1641315799058,25.9688,171.55,171.47,45.61200791]
[1641315800260,25.4688,171.55,171.47,45.61200791]
[1641315800459,25.9688,171.55,171.47,45.61200791]
[1641315801961,25.9688,171.55,171.47,46.91750791]
[1641315803964,25.9688,171.55,171.47,45.35200791]
[1641315804163,1.44850786,171.54,171.47,45.35200791]
[1641315804363,1.94850786,171.54,171.47,45.35200791]
[1641315804563,2.20850786,171.54,171.47,45.35200791]
[1641315804763,1.44850786,171.53,171.47,45.35200791]
[1641315804967,1.70850786,171.53,171.47,45.35200791]
[1641315805165,2.20850786,171.53,171.47,45.35200791]
[1641315806364,1.44850786,171.52,171.47,45.35200791]
[1641315806563,1.70850786,171.52,171.47,45.35200791]
[1641315806764,2.20850786,171.52,171.47,45.35200791]
[1641315808666,19.05803292,171.47,171.36,8.38]
[1641315808867,19.55803292,171.47,171.36,8.38]
[1641315809068,29.11056259,171.46,171.36,8.38]
[1641315809466,22.615,171.45,171.36,8.38]
[1641315809667,22.615,171.45,171.37,2.91947499]
[1641315810174,22.615,171.45,171.37,3.17947499]
[1641315813872,29.11056259,171.46,171.37,3.17947499]
[1641315814673,29.11056259,171.46,171.38,1.3623]
[1641315815073,29.11056259,171.46,171.38,1.6223]
[1641315818579,29.11056259,171.46,171.38,1.3623]
[1641315820078,29.11056259,171.46,171.38,1.6223]
[1641315820280,29.11056259,171.46,171.38,1.3623]
[1641315820483,1.44850786,171.45,171.32,0.45680289]
[1641315820679,110.24710786,171.45,171.32,0.45680289]
[1641315820980,1.2829,171.44,171.32,0.45680289]
[1641315821178,11.11140786,171.44,171.32,0.45680289]
[1641315821378,1.44850786,171.43,171.32,0.45680289]
[1641315821579,1.70850786,171.43,171.32,0.45680289]
[1641315821780,2.20850786,171.43,171.32,0.45680289]
[1641315822079,25.10320786,171.43,171.32,2.69342018]
[1641315822280,1.44850786,171.42,171.32,2.69342018]
[1641315822479,1.70850786,171.42,171.32,2.69342018]
[1641315822679,0.76,171.42,171.32,2.69342018]
[1641315823283,23.6547,171.43,171.32,2.95342018]
[1641315827685,25.10320786,171.43,171.32,2.95342018]
[1641315830793,25.10320786,171.43,171.32,0.71680289]
[1641315830987,25.10320786,171.43,171.32,0.45680289]
[1641315831790,1.2514,171.42,171.32,0.45680289]
[1641315831990,1.5114,171.42,171.32,0.45680289]
[1641315832189,2.0114,171.42,171.32,0.45680289]
[1641315832990,2.0114,171.42,171.32,1.77940289]
[1641315833190,2.0114,171.42,171.32,2.03940289]
[1641315833890,1.7514,171.42,171.32,2.03940289]
[1641315840404,1.7514,171.42,171.32,1.77940289]
[1641315841828,1.7514,171.42,171.32,2.03940289]
[1641315848642,1.7514,171.42,171.32,1.77940289]
[1641315848845,1.7514,171.42,171.32,0.45680289]
[1641315849046,10.1314,171.42,171.32,0.45680289]
[1641315849249,11.83990786,171.42,171.32,0.45680289]
[1641315850152,10.3914,171.42,171.32,0.45680289]
[1641315850350,10.1314,171.42,171.32,0.45680289]
[1641315851656,10.1314,171.42,171.32,1.81030289]
[1641315852052,10.1314,171.42,171.32,2.07030289]
[1641315854883,10.1314,171.42,171.33,2.53804085]
[1641315855082,10.1314,171.42,171.33,2.79804085]
[1641315857584,10.3914,171.42,171.33,3.85954085]
[1641315857784,10.1314,171.42,171.33,3.85954085]
[1641315859084,10.1314,171.42,171.33,4.11954085]
[1641315859487,10.3914,171.42,171.33,4.11954085]
[1641315862889,10.1314,171.42,171.33,4.11954085]
[1641315864991,8.88,171.42,171.33,4.11954085]
[1641315865192,0.5,171.42,171.33,4.11954085]
[1641315865391,23.3947,171.43,171.33,4.11954085]
[1641315866992,1.2987,171.42,171.33,4.11954085]
[1641315867492,1.7987,171.42,171.33,4.11954085]
[1641315873500,1.7987,171.42,171.33,3.85954085]
[1641315875002,1.7987,171.42,171.33,4.11954085]
[1641315877103,1.2987,171.42,171.33,4.11954085]
[1641315878705,22.8947,171.43,171.33,4.11954085]
[1641315878905,23.3947,171.43,171.33,4.11954085]
[1641315882306,23.3947,171.43,171.33,3.85954085]
[1641315883511,1.3452,171.42,171.33,4.11954085]
[1641315883913,1.8452,171.42,171.33,4.11954085]
[1641315884511,1.61243851,171.41,171.33,4.11954085]
[1641315884712,1.61243851,171.41,171.33,1.3215]
[1641315886013,1.61243851,171.41,171.33,1.5815]
[1641315886213,1.61243851,171.42,171.33,1.5815]
[1641315886637,1.61243851,171.42,171.33,1.3215]
[1641315887439,2.86383851,171.42,171.33,1.3215]
[1641315887841,1.61243851,171.41,171.33,1.3215]
[1641315888043,1.61243851,171.41,171.33,1.5815]
[1641315893546,1.2514,171.42,171.33,1.5815]
[1641315894154,2.86383851,171.42,171.33,1.5815]
[1641315894346,2.86383851,171.42,171.33,1.3215]
[1641315895550,2.86383851,171.42,171.33,1.5815]
[1641315899551,1.61243851,171.41,171.33,1.5815]
[1641315900758,2.86383851,171.42,171.33,1.5815]
[1641315901754,3.36383851,171.42,171.33,1.5815]
[1641315901953,2.86383851,171.42,171.33,1.5815]
[1641315902355,3.36383851,171.42,171.33,1.5815]
[1641315902554,1.61243851,171.41,171.33,1.5815]
[1641315903056,1.61243851,171.4,171.33,1.3215]
[1641315903257,30.07970487,171.39,171.33,1.3215]
[1641315904154,54.56020487,171.39,171.33,1.3215]
[1641315904657,54.56020487,171.39,171.33,1.5815]
[1641315907157,54.56020487,171.39,171.33,1.3215]
[1641315907358,54.56020487,171.39,171.32,0.45680289]
[1641315908355,56.17264338,171.39,171.32,0.45680289]
[1641315909961,56.93264338,171.39,171.32,0.45680289]
[1641315910161,56.67264338,171.39,171.32,0.45680289]
[1641315910560,56.17264338,171.39,171.32,0.45680289]
[1641315910762,56.67264338,171.39,171.32,0.45680289]
[1641315910963,1.61243851,171.38,171.32,0.45680289]
[1641315911362,1.2352,171.37,171.32,0.45680289]
[1641315911762,1.9952,171.37,171.32,0.45680289]
[1641315912363,1.7352,171.37,171.32,0.45680289]
[1641315912564,3.34763851,171.37,171.32,0.45680289]
[1641315912765,3.60763851,171.37,171.32,0.45680289]
[1641315913164,1.9952,171.37,171.32,0.45680289]
[1641315916467,10.3752,171.37,171.32,0.45680289]
[1641315920172,19.1854,171.37,171.32,0.45680289]
[1641315920772,24.6212,171.36,171.32,0.45680289]
[1641315920974,25.1212,171.36,171.32,0.45680289]
[1641315921876,25.3812,171.36,171.32,0.45680289]
[1641315922078,25.1212,171.36,171.32,0.45680289]
[1641315922279,1.2829,171.35,171.32,0.45680289]
[1641315922678,1.7829,171.35,171.32,0.45680289]
[1641315923179,3.39533851,171.35,171.32,0.45680289]
[1641315924685,1.7829,171.35,171.32,0.45680289]
[1641315926289,3.39533851,171.35,171.32,0.45680289]
[1641315928615,1.7829,171.35,171.32,0.45680289]
[1641315930017,3.39533851,171.35,171.32,0.45680289]
[1641315931315,1.61243851,171.34,171.32,0.45680289]
[1641315931720,2.11243851,171.34,171.32,0.45680289]
[1641315931918,0.5,171.34,171.32,0.45680289]
[1641315932316,3.39533851,171.35,171.32,0.45680289]
[1641315934224,1.61243851,171.34,171.32,0.45680289]
[1641315934417,2.11243851,171.34,171.32,0.45680289]
[1641315934618,0.5,171.34,171.32,0.45680289]
[1641315935119,3.39533851,171.35,171.32,0.45680289]
[1641315937532,1.7829,171.35,171.32,0.45680289]
[1641315940547,3.39533851,171.35,171.32,0.45680289]
[1641315944748,1.61243851,171.34,171.32,0.45680289]
[1641315944947,2.11243851,171.34,171.32,0.45680289]
[1641315949380,0.5,171.34,171.32,0.45680289]
[1641315949879,1.61243851,171.34,171.32,0.45680289]
[1641315950280,2.11243851,171.34,171.32,0.45680289]
[1641315952082,1.61243851,171.33,171.32,0.45680289]
[1641315952483,2.11243851,171.33,171.32,0.45680289]
[1641315953688,0.5,171.33,171.32,0.45680289]
[1641315954391,2.11243851,171.33,171.32,0.45680289]
[1641315955594,0.5,171.33,171.32,0.45680289]
[1641315962696,2.11243851,171.33,171.32,0.45680289]
[1641315963297,0.5,171.33,171.32,0.45680289]
[1641315963899,0.5,171.33,171.32,2.89e-06]
[1641315964098,29.24797151,171.32,171.25,1.2628]
[1641315964298,29.24797151,171.32,171.2,1.286]
[1641315964498,32.2833,171.31,171.2,1.3173]
[1641315964901,33.0433,171.31,171.2,1.3173]
[1641315965702,1.58466427,171.29,171.2,1.3173]
[1641315965901,1.58466427,171.29,171.2,0.8173]
[1641315965902,2.08466427,171.29,171.2,0.8173]
[1641315966100,2.08466427,171.29,171.19,26.76763012]
[1641315966101,2.34466427,171.29,171.19,2.36733012]
[1641315966803,2.34466427,171.29,171.15,1.3158]
[1641315967001,28.57356421,171.25,171.15,0.3158]
[1641315967202,28.57356421,171.25,171.14,8.38]
[1641315967403,29.07356421,171.25,171.14,8.38]
[1641315967603,29.07356421,171.25,171.14,8.64]
[1641315967801,29.07356421,171.25,171.16,3.04320834]
[1641315968000,29.07356421,171.25,171.16,3.30320834]
[1641315968601,28.57356421,171.25,171.16,3.30320834]
[1641315974636,28.57356421,171.25,171.16,3.04320834]
[1641315976436,29.07356421,171.25,171.15,1.2975]
[1641315976939,23.2505,171.24,171.15,1.2975]
[1641315977336,23.7505,171.24,171.15,1.2975]
[1641315977539,23.7505,171.24,171.16,2.8985643]
[1641315977736,25.1044,171.24,171.16,2.8985643]
[1641315978138,25.1044,171.24,171.15,1.2975]
[1641315978437,25.1044,171.24,171.15,1.5575]
[1641315979038,25.1044,171.24,171.15,4.24219502]
[1641315982550,24.6044,171.24,171.15,4.24219502]
[1641315983845,26.18906427,171.24,171.15,4.24219502]
[1641315984248,24.6044,171.24,171.15,4.24219502]
[1641315984849,25.1044,171.24,171.15,4.24219502]
[1641315986248,24.6044,171.24,171.15,4.24219502]
[1641315986649,24.6044,171.24,171.15,3.98219502]
[1641315986849,25.1044,171.24,171.15,3.98219502]
[1641315987249,26.68906427,171.24,171.15,3.98219502]
[1641315988049,26.68906427,171.24,171.15,4.24219502]
[1641315992085,31.75406427,171.24,171.15,4.24219502]
[1641315996194,31.75406427,171.24,171.15,1.5575]
[1641315997393,31.75406427,171.24,171.15,4.19276207]
[1641315997596,31.75406427,171.24,171.15,1.2975]
[1641315997597,1.58466427,171.23,171.15,1.2975]
[1641315997799,9.96466427,171.23,171.11,1.2737]
[1641315997993,1.44850786,171.22,171.04,8.38]
[1641315998200,8.38,171.21,171.07,1.2453]
[1641315998393,8.88,171.21,171.07,1.2453]
[1641315998593,1.44850786,171.2,171.07,3.94269502]
[1641315998793,8.38,171.19,171.07,3.94269502]
[1641315998994,56.00849033,171.18,171.07,3.94269502]
[1641315999192,1.2935,171.17,171.07,3.94269502]
[1641315999392,1.2935,171.17,171.07,1.2453]
[1641315999393,3.37816427,171.17,171.07,1.2453]
[1641315999592,5.08667213,171.17,171.07,1.2453]
[1641315999993,3.63816427,171.17,171.07,1.2453]
[1641316000195,3.37816427,171.17,171.07,1.2453]
[1641316000593,1.58466427,171.14,171.07,1.2453]
[1641316000993,2.08466427,171.14,171.07,1.2453]
[1641316001193,1.58466427,171.16,171.07,1.2453]
[1641316001394,2.08466427,171.16,171.07,1.2453]
[1641316001995,0.5,171.16,171.07,1.2453]
[1641316002195,0.5,171.16,171.07,1.5053]
[1641316002396,3.37816427,171.17,171.07,1.5053]
[1641316003196,3.63816427,171.17,171.07,1.5053]
[1641316003397,1.58466427,171.16,171.07,1.5053]
[1641316003798,2.08466427,171.16,171.07,1.2453]
[1641316004399,0.5,171.16,171.07,1.2453]
[1641316004796,1.7935,171.17,171.07,1.2453]
[1641316004995,11.25816427,171.17,171.07,1.5053]
[1641316005197,11.75816427,171.17,171.07,1.2453]
[1641316005396,11.75816427,171.17,171.07,1.5053]
[1641316005997,1.58466427,171.16,171.07,1.5053]
[1641316006398,2.08466427,171.16,171.07,1.5053]
[1641316006998,1.58466427,171.15,171.07,1.5053]
[1641316007799,2.08466427,171.15,171.07,1.5053]
[1641316008000,1.58466427,171.15,171.07,1.5053]
[1641316008204,1.58466427,171.16,171.07,1.5053]
[1641316008402,2.08466427,171.16,171.07,1.5053]
[1641316008601,0.5,171.16,171.07,1.5053]
[1641316009001,9.96466427,171.17,171.07,1.5053]
[1641316009202,1.58466427,171.17,171.07,1.5053]
[1641316010404,31.84109033,171.18,171.07,1.5053]
[1641316011103,33.4257546,171.18,171.07,1.5053]
[1641316011708,33.4257546,171.18,171.07,1.2453]
[1641316011904,33.9257546,171.18,171.07,1.2453]
[1641316012306,25.16946427,171.17,171.07,1.2453]
[1641316012706,25.66946427,171.17,171.07,1.2453]
[1641316012907,1.357,171.16,171.07,1.2453]
[1641316013307,1.857,171.16,171.07,1.2453]
[1641316013709,1.357,171.16,171.07,1.5053]
[1641316013913,2.94166427,171.16,171.07,1.5053]
[1641316014110,1.58466427,171.16,171.07,1.5053]
[1641316014308,0.5,171.16,171.07,1.5053]
[1641316014711,25.16946427,171.17,171.07,1.5053]
[1641316015110,1.58466427,171.17,171.07,1.5053]
[1641316016116,33.4257546,171.18,171.07,1.5053]
[1641316016513,1.58466427,171.17,171.07,1.5053]
[1641316017115,33.4257546,171.18,171.07,1.5053]
[1641316018514,23.8806,171.17,171.07,1.5053]
[1641316019114,28.7316,171.17,171.07,1.5053]
[1641316019321,30.81626427,171.17,171.07,1.5053]
[1641316020517,1.2724,171.16,171.07,1.5053]
[1641316020914,1.7724,171.16,171.07,1.5053]
[1641316021417,1.58466427,171.15,171.07,1.5053]
[1641316022015,10.76606427,171.16,171.07,1.5053]
[1641316022217,22.5999,171.15,171.07,1.5053]
[1641316022720,24.68456427,171.15,171.07,1.5053]
[1641316023719,24.18456427,171.15,171.07,1.5053]
[1641316024620,24.68456427,171.15,171.07,1.5053]
[1641316025222,24.18456427,171.15,171.07,1.5053]
[1641316025448,24.68456427,171.15,171.07,1.5053]
[1641316025622,24.18456427,171.15,171.07,1.5053]
[1641316025824,24.68456427,171.15,171.07,1.5053]
[1641316026023,24.18456427,171.15,171.07,1.5053]
[1641316027527,24.68456427,171.15,171.07,1.5053]
[1641316028228,24.18456427,171.15,171.07,1.5053]
[1641316029428,24.68456427,171.15,171.07,1.5053]
[1641316031331,24.68456427,171.15,171.07,1.2453]
[1641316032433,1.58466427,171.12,171.07,1.2453]
[1641316032631,26.40649695,171.11,171.07,1.2453]
[1641316032833,26.40649695,171.11,171.06,2.62826515]
[1641316034060,26.40649695,171.11,171.06,2.88826515]
[1641316039464,26.40649695,171.11,171.06,0.26]
[1641316039664,31.98749695,171.11,171.03,1.2556]
[1641316039862,31.98749695,171.11,170.97,8.38]
[1641316040065,22.6429,171.1,171.0,1.2953]
[1641316040465,24.72756427,171.1,171.0,1.2953]
[1641316040665,1.3208,171.09,171.01,2.7410971]
[1641316041064,1.5808,171.09,171.01,2.7410971]
[1641316041264,3.16546427,171.09,171.01,2.7410971]
[1641316042165,1.5808,171.09,171.01,2.7410971]
[1641316042366,2.0808,171.09,171.01,2.7410971]
[1641316042965,1.8208,171.09,171.01,3.0010971]
[1641316043966,1.3208,171.09,171.01,3.0010971]
[1641316044370,1.8208,171.09,171.01,3.0010971]
[1641316044868,1.3208,171.09,171.01,3.0010971]
[1641316050474,1.3208,171.09,171.01,0.5010971]
[1641316050875,1.3208,171.09,171.01,0.2410971]
[1641316053384,0.8208,171.09,171.01,0.2410971]
[1641316058389,2.40546427,171.09,171.01,0.2410971]
[1641316058589,2.66546427,171.09,171.01,0.2410971]
[1641316058788,3.16546427,171.09,170.98,1.4412]
[1641316060121,3.16546427,171.09,170.99,2.59123251]
[1641316060515,3.16546427,171.09,170.99,2.85123251]
[1641316061816,3.16546427,171.09,171.0,1.3399]
[1641316062019,3.16546427,171.09,171.0,1.5999]
[1641316062219,2.90546427,171.09,171.0,1.5999]
[1641316063617,1.3208,171.09,171.0,1.5999]
[1641316064417,0.8208,171.09,171.0,1.5999]
[1641316069324,2.40546427,171.09,171.0,1.5999]
[1641316069926,2.40546427,171.09,171.0,1.3399]
[1641316071129,0.8208,171.09,171.0,1.3399]
[1641316071329,0.8208,171.09,171.0,1.5999]
[1641316073433,9.2008,171.09,170.88,21.35792518]
[1641316073731,26.61222314,170.96,170.84,497.03671329]
[1641316073931,27.11222314,170.96,170.86,1.2987]
[1641316074129,26.61222314,170.96,170.86,1.2987]
[1641316074632,26.87222314,170.96,170.86,1.2987]
[1641316074830,27.37222314,170.96,170.86,1.2987]
[1641316075030,27.11222314,170.96,170.86,1.2987]
[1641316075230,8.38,170.95,170.83,1.63357552]
[1641316075433,8.88,170.95,170.83,0.29257552]
[1641316075633,9.14,170.95,170.83,0.29257552]
[1641316075831,1.44850786,170.94,170.84,2.93088425]
[1641316076031,8.38,170.93,170.84,2.93088425]
[1641316076434,1.58466427,170.92,170.84,2.93088425]
[1641316076634,8.38,170.91,170.84,2.93088425]
[1641316077033,8.38,170.91,170.83,0.29257552]
[1641316077835,9.82850786,170.91,170.83,0.29257552]
[1641316078038,8.64,170.91,170.83,2.54104781]
[1641316078436,9.14,170.91,170.83,2.54104781]
[1641316078640,8.64,170.91,170.83,2.54104781]
[1641316078838,8.88,170.91,170.83,2.54104781]
[1641316079842,8.88,170.91,170.83,2.80104781]
[1641316080040,8.38,170.91,170.83,2.80104781]
[1641316082846,9.7339,170.94,170.83,2.80104781]